fUST/lending_fUST_20250210
["ID","MTS","AMOUNT","RATE_DAILY","PERIOD"]
[352544224,1739159457361,-500.0,0.00012191,2]
[352544225,1739159457371,-705.99,0.00012191,2]
[352544226,1739159457485,-500.0,0.00012191,2]
[352544227,1739159457495,-580.12,0.00012191,2]
[352544228,1739159457505,-500.0,0.00012191,2]
[352544229,1739159457514,-1920.71,0.00012191,2]
[352544230,1739159457524,-500.0,0.00012191,2]
[352544231,1739159457533,-500.0,0.00012191,2]
[352544232,1739159457542,-500.0,0.00012191,2]
[352544233,1739159457551,-610.0,0.00012191,2]
[352544234,1739159457561,-500.0,0.00012191,2]
[352544235,1739159457570,-1079.91,0.00012191,2]
[352544236,1739159457579,-500.0,0.00012191,2]
[352544237,1739159457588,-653.91,0.00012191,2]
[352544238,1739159457600,-503.59910472,0.00012191,2]
[352544239,1739159457609,-501.46,0.00012191,2]
[352544240,1739159457619,-500.0,0.00012191,2]
[352544241,1739159457632,-214.69450268,0.00012191,2]
[352544242,1739159457642,-3903.0,0.00012191,2]
[352544243,1739159457651,-3709.32,0.00012191,2]
[352544244,1739159457661,-500.0,0.00012191,2]
[352544245,1739159457671,-3719.6,0.00012191,2]
[352544246,1739159457681,-871.83,0.00012191,2]
[352544247,1739159457690,-2055.74,0.00012191,2]
[352544248,1739159457700,-500.0,0.00012191,2]
[352544249,1739159457712,-1325.55,0.00012191,2]
[352544250,1739159457723,-760.18,0.00012191,2]
[352544251,1739159457732,-650.97,0.00012191,2]
[352544252,1739159457742,-14163.79,0.00012191,2]
[352544253,1739159457751,-518.98,0.00012191,2]
[352544254,1739159457762,-26907.86,0.00012191,2]
[352544255,1739159457771,-1618.92,0.00012191,2]
[352544256,1739159457781,-2005.94,0.00012191,2]
[352544257,1739159457791,-500.0,0.00012191,2]
[352544258,1739159457800,-704.77,0.00012191,2]
[352544259,1739159457810,-1456.37,0.00012191,2]
[352544260,1739159457819,-779.8,0.00012191,2]
[352544261,1739159457829,-500.0,0.00012191,2]
[352544262,1739159457838,-1919.7,0.00012191,2]
[352544263,1739159457850,-824.44,0.00012191,2]
[352544264,1739159457859,-1614.34,0.00012191,2]
[352544265,1739159457869,-500.0,0.00012191,2]
[352544266,1739159457879,-500.0,0.00012191,2]
[352544267,1739159457888,-500.0,0.00012191,2]
[352544268,1739159457897,-388.23739994,0.00012191,2]
[352544269,1739159457906,-500.0,0.00012191,2]
[352544270,1739159457916,-504.09251912,0.00012191,2]
[352544271,1739159457925,-589.21,0.00012191,2]
[352544272,1739159457934,-1026.49,0.00012191,2]
[352544273,1739159457943,-500.0,0.00012191,2]
[352544274,1739159457952,-746.76,0.00012191,2]
[352544275,1739159457962,-655.27,0.00012191,2]
[352544276,1739159457972,-2053.08,0.00012191,2]
[352544277,1739159457981,-2692.2,0.00012191,2]
[352544278,1739159457990,-500.0,0.00012191,2]
[352544279,1739159458000,-1287.78,0.00012191,2]
[352544280,1739159458009,-1187.79,0.00012191,2]
[352544281,1739159458018,-500.0,0.00012191,2]
[352544282,1739159458027,-732.99,0.00012191,2]
[352544283,1739159458037,-1242.99,0.00012191,2]
[352544284,1739159458046,-1000.7,0.00012191,2]
[352544285,1739159458056,-500.0,0.00012191,2]
[352544286,1739159458065,-500.0,0.00012191,2]
[352544287,1739159458075,-500.0,0.00012191,2]
[352544288,1739159458085,-521.05,0.00012191,2]
[352544289,1739159458096,-500.0,0.00012191,2]
[352544290,1739159458106,-790.31,0.00012191,2]
[352544291,1739159458115,-151.0,0.00012191,2]
[352544292,1739159458125,-510.08,0.00012191,2]
[352544293,1739159458134,-1045.63,0.00012191,2]
[352544294,1739159458144,-937.96,0.00012191,2]
[352544295,1739159458153,-3052.88,0.00012191,2]
[352544296,1739159458162,-679.89,0.00012191,2]
[352544297,1739159458171,-500.0,0.00012191,2]
[352544298,1739159458180,-500.0,0.00012191,2]
[352544299,1739159458190,-6790.26,0.00012191,2]
[352544300,1739159458199,-1017.48,0.00012191,2]
[352544301,1739159458209,-500.0,0.00012191,2]
[352544302,1739159458218,-706.11,0.00012191,2]
[352544303,1739159458228,-3458.8,0.00012191,2]
[352544304,1739159458238,-544.55776115,0.00012191,2]
[352544305,1739159458247,-500.0,0.00012191,2]
[352544306,1739159458256,-10188.75,0.00012191,2]
[352544307,1739159458265,-151.0,0.000122,2]
[352544308,1739159458276,-250.80127485,0.00012202,2]
[352544309,1739159458285,-160.68360129,0.00012215,2]
[352544310,1739159458295,-500.0,0.00012215,2]
[352544311,1739159458304,-500.54057919,0.00012215,2]
[352544312,1739159458313,-500.0,0.00012215,2]
[352544313,1739159458323,-500.0,0.00012215,2]
[352544314,1739159458332,-500.0,0.00012246,2]
[352544315,1739159458341,-500.0,0.00012246,2]
[352544316,1739159458353,-500.0,0.00012246,2]
[352544317,1739159458363,-626.10567238,0.00012246,2]
[352544318,1739159458372,-151.99847532,0.00012246,2]
[352544319,1739159458382,-515.82766927,0.00012246,2]
[352544320,1739159458391,-501.12441615,0.0001227,2]
[352544321,1739159458401,-500.0,0.0001227,2]
[352544322,1739159458410,-506.56848115,0.00012295,2]
[352544323,1739159458419,-272.87832129,0.00012295,2]
[352544324,1739159458429,-156.47861849,0.00012295,2]
[352544325,1739159458439,-500.0,0.00012314,2]
[352544326,1739159458448,-500.08489898,0.00012326,2]
[352544327,1739159458458,-500.0,0.00012326,2]
[352544328,1739159458467,-500.0,0.00012326,2]
[352544329,1739159458476,-500.0,0.00012326,2]
[352544330,1739159458486,-500.0,0.00012326,2]
[352544331,1739159458495,-500.0,0.00012328,2]
[352544332,1739159458505,-719.3,0.00012328,2]
[352544333,1739159458514,-1019.54,0.00012328,2]
[352544334,1739159458523,-732.17,0.00012328,2]
[352544335,1739159458533,-500.0,0.00012328,2]
[352544336,1739159458543,-500.0,0.00012328,2]
[352544337,1739159458552,-500.0,0.00012328,2]
[352544338,1739159458562,-733.41,0.00012328,2]
[352544339,1739159458571,-742.49,0.00012328,2]
[352544340,1739159458580,-500.0,0.00012328,2]
[352544341,1739159458589,-500.0,0.00012328,2]
[352544342,1739159458601,-500.0,0.00012328,2]
[352544343,1739159458610,-447.48363564,0.00012328,2]
[352544344,1739159458620,-1187.85,0.00012328,2]
[352544345,1739159458631,-500.0,0.00012328,2]
[352544346,1739159458642,-500.0,0.00012328,2]
[352544347,1739159458651,-500.0,0.00012328,2]
[352544348,1739159458661,-500.0,0.00012328,2]
[352544349,1739159458670,-694.28,0.00012328,2]
[352544350,1739159458680,-500.0,0.00012328,2]
[352544351,1739159458690,-500.0,0.00012328,2]
[352544352,1739159458699,-705.99,0.00012328,2]
[352544353,1739159458711,-500.0,0.00012328,2]
[352544354,1739159458720,-580.12,0.00012328,2]
[352544355,1739159458729,-500.0,0.00012328,2]
[352544356,1739159458739,-1920.71,0.00012328,2]
[352544357,1739159458747,-500.0,0.00012328,2]
[352544358,1739159458757,-423.12021039,0.00012328,2]
[352544359,1739159458766,-500.0,0.00012328,2]
[352544360,1739159458775,-610.0,0.00012328,2]
[352544361,1739159458784,-500.0,0.00012328,2]
[352544362,1739159458794,-1079.91,0.00012328,2]
[352544363,1739159458803,-500.0,0.00012328,2]
[352544364,1739159458813,-653.91,0.00012328,2]
[352544365,1739159458822,-501.46,0.00012328,2]
[352544366,1739159458831,-500.0,0.00012328,2]
[352544367,1739159458841,-3903.0,0.00012328,2]
[352544368,1739159458852,-3709.32,0.00012328,2]
[352544369,1739159458861,-500.0,0.00012328,2]
[352544370,1739159458871,-3719.6,0.00012328,2]
[352544371,1739159458880,-871.83,0.00012328,2]
[352544372,1739159458890,-2055.74,0.00012328,2]
[352544373,1739159458899,-500.0,0.00012328,2]
[352544374,1739159458909,-1325.55,0.00012328,2]
[352544375,1739159458918,-760.18,0.00012328,2]
[352544376,1739159458927,-650.97,0.00012328,2]
[352544377,1739159458998,-14163.79,0.00012328,2]
[352544378,1739159459018,-518.98,0.00012328,2]
[352544379,1739159459028,-26907.86,0.00012328,2]
[352544380,1739159459037,-1618.92,0.00012328,2]
[352544381,1739159459047,-500.0,0.00012328,2]
[352544382,1739159459057,-2005.94,0.00012328,2]
[352544383,1739159459069,-704.77,0.00012328,2]
[352544384,1739159459078,-1456.37,0.00012328,2]
[352544385,1739159459088,-779.8,0.00012328,2]
[352544386,1739159459097,-500.0,0.00012328,2]
[352544387,1739159459107,-1919.7,0.00012328,2]
[352544388,1739159459116,-824.44,0.00012328,2]
[352544389,1739159459125,-1614.34,0.00012328,2]
[352544390,1739159459135,-500.0,0.00012328,2]
[352544391,1739159459144,-500.0,0.00012328,2]
[352544392,1739159459154,-500.0,0.00012328,2]
[352544393,1739159459163,-500.0,0.00012328,2]
[352544394,1739159459171,-589.21,0.00012328,2]
[352544395,1739159459180,-1026.49,0.00012328,2]
[352544396,1739159459190,-500.0,0.00012328,2]
[352544397,1739159459200,-746.76,0.00012328,2]
[352544398,1739159459209,-655.27,0.00012328,2]
[352544399,1739159459219,-2053.08,0.00012328,2]
[352544400,1739159459229,-2692.2,0.00012328,2]
[352544401,1739159459238,-505.23331944,0.00012328,2]
[352544402,1739159459248,-151.0,0.00012328,2]
[352544403,1739159459257,-1287.78,0.00012328,2]
[352544404,1739159459266,-1187.79,0.00012328,2]
[352544405,1739159459275,-500.0,0.00012328,2]
[352544406,1739159459284,-732.99,0.00012328,2]
[352544407,1739159459294,-1242.99,0.00012328,2]
[352544408,1739159459303,-1000.7,0.00012328,2]
[352544409,1739159459312,-500.0,0.00012328,2]
[352544410,1739159459322,-500.0,0.00012328,2]
[352544411,1739159459331,-500.0,0.00012328,2]
[352544412,1739159459340,-521.05,0.00012328,2]
[352544413,1739159459352,-500.0,0.00012328,2]
[352544414,1739159459361,-790.31,0.00012328,2]
[352544415,1739159459370,-510.08,0.00012328,2]
[352544416,1739159459379,-1045.63,0.00012328,2]
[352544417,1739159459389,-937.96,0.00012328,2]
[352544418,1739159459398,-3052.88,0.00012328,2]
[352544419,1739159459408,-679.89,0.00012328,2]
[352544420,1739159459417,-151.0,0.00012328,2]
[352544421,1739159459426,-500.0,0.00012328,2]
[352544422,1739159459435,-500.0,0.00012328,2]
[352544423,1739159459444,-6790.26,0.00012328,2]
[352544424,1739159459453,-1017.48,0.00012328,2]
[352544425,1739159459463,-500.0,0.00012328,2]
[352544426,1739159459472,-706.11,0.00012328,2]
[352544427,1739159459482,-3458.8,0.00012328,2]
[352544428,1739159459491,-500.0,0.00012328,2]
[352544429,1739159459500,-10188.75,0.00012328,2]
[352544430,1739159459510,-500.40279845,0.00012346,2]
[352544431,1739159459520,-500.0,0.00012346,2]
[352544432,1739159459529,-500.0,0.00012346,2]
[352544433,1739159459539,-500.0,0.00012346,2]
[352544434,1739159459548,-500.56909593,0.00012346,2]
[352544435,1739159459556,-500.0,0.00012392,2]
[352544436,1739159459566,-500.0,0.00012392,2]
[352544437,1739159459575,-332.55886866,0.00012409,2]
[352544438,1739159459584,-151.456261,0.00012465,2]
[352544439,1739159459594,-500.0,0.00012465,2]
[352544440,1739159459607,-719.3,0.00012465,2]
[352544441,1739159459617,-1019.54,0.00012465,2]
[352544442,1739159459626,-732.17,0.00012465,2]
[352544443,1739159459639,-500.0,0.00012465,2]
[352544444,1739159459648,-500.0,0.00012465,2]
[352544445,1739159459658,-500.0,0.00012465,2]
[352544446,1739159459668,-733.41,0.00012465,2]
[352544447,1739159459677,-742.49,0.00012465,2]
[352544448,1739159459687,-500.0,0.00012465,2]
[352544449,1739159459696,-500.0,0.00012465,2]
[352544450,1739159459706,-500.0,0.00012465,2]
[352544451,1739159459717,-1187.85,0.00012465,2]
[352544452,1739159459726,-500.0,0.00012465,2]
[352544453,1739159459736,-500.0,0.00012465,2]
[352544454,1739159459746,-500.0,0.00012465,2]
[352544455,1739159459755,-694.28,0.00012465,2]
[352544456,1739159459764,-500.0,0.00012465,2]
[352544457,1739159459773,-500.0,0.00012465,2]
[352544458,1739159459782,-500.0,0.00012465,2]
[352544459,1739159459791,-705.99,0.00012465,2]
[352544460,1739159459800,-530.58386184,0.00012465,2]
[352544461,1739159459809,-580.12,0.00012465,2]
[352544462,1739159459818,-500.0,0.00012465,2]
[352544463,1739159459827,-1920.71,0.00012465,2]
[352544464,1739159459837,-500.0,0.00012465,2]
[352544465,1739159459848,-500.0,0.00012465,2]
[352544466,1739159459857,-610.0,0.00012465,2]
[352544467,1739159459866,-500.0,0.00012465,2]
[352544468,1739159459875,-1079.91,0.00012465,2]
[352544469,1739159459884,-500.0,0.00012465,2]
[352544470,1739159459894,-653.91,0.00012465,2]
[352544471,1739159459904,-501.46,0.00012465,2]
[352544472,1739159459913,-500.0,0.00012465,2]
[352544473,1739159459922,-3903.0,0.00012465,2]
[352544474,1739159459931,-3709.32,0.00012465,2]
[352544475,1739159459940,-366.51649197,0.00012465,2]
[352544476,1739159459950,-3719.6,0.00012465,2]
[352544477,1739159459959,-871.83,0.00012465,2]
[352544478,1739159459969,-2055.74,0.00012465,2]
[352544479,1739159459978,-500.0,0.00012465,2]
[352544480,1739159459987,-1325.55,0.00012465,2]
[352544481,1739159460004,-760.18,0.00012465,2]
[352544482,1739159460020,-650.97,0.00012465,2]
[352544483,1739159460031,-14163.79,0.00012465,2]
[352544484,1739159460041,-518.98,0.00012465,2]
[352544485,1739159460052,-151.0,0.00012465,2]
[352544486,1739159460063,-26907.86,0.00012465,2]
[352544487,1739159460074,-1618.92,0.00012465,2]
[352544488,1739159460085,-2005.94,0.00012465,2]
[352544489,1739159460095,-704.77,0.00012465,2]
[352544490,1739159460106,-1456.37,0.00012465,2]
[352544491,1739159460116,-779.8,0.00012465,2]
[352544492,1739159460125,-500.0,0.00012465,2]
[352544493,1739159460135,-1919.7,0.00012465,2]
[352544494,1739159460145,-824.44,0.00012465,2]
[352544495,1739159460155,-1614.34,0.00012465,2]
[352544496,1739159460164,-151.0,0.00012465,2]
[352544497,1739159460174,-500.0,0.00012465,2]
[352544498,1739159460184,-500.0,0.00012465,2]
[352544499,1739159460195,-500.0,0.00012465,2]
[352544500,1739159460205,-500.0,0.00012465,2]
[352544501,1739159460215,-589.21,0.00012465,2]
[352544502,1739159460226,-1026.49,0.00012465,2]
[352544503,1739159460236,-500.0,0.00012465,2]
[352544504,1739159460247,-746.76,0.00012465,2]
[352544505,1739159460258,-655.27,0.00012465,2]
[352544506,1739159460269,-2053.08,0.00012465,2]
[352544507,1739159460279,-2692.2,0.00012465,2]
[352544508,1739159460288,-151.0,0.00012465,2]
[352544509,1739159460298,-1287.78,0.00012465,2]
[352544510,1739159460308,-1187.79,0.00012465,2]
[352544511,1739159460317,-293.3872912,0.00012465,2]
[352544512,1739159460327,-732.99,0.00012465,2]
[352544513,1739159460338,-1242.99,0.00012465,2]
[352544514,1739159460351,-1000.7,0.00012465,2]
[352544515,1739159460362,-500.0,0.00012465,2]
[352544516,1739159460373,-500.0,0.00012465,2]
[352544517,1739159460451,-500.0,0.00012465,2]
[352544518,1739159460463,-521.05,0.00012465,2]
[352544519,1739159460473,-500.0,0.00012465,2]
[352544520,1739159460483,-790.31,0.00012465,2]
[352544521,1739159460493,-510.08,0.00012465,2]
[352544522,1739159460502,-1045.63,0.00012465,2]
[352544523,1739159460513,-937.96,0.00012465,2]
[352544524,1739159460523,-3052.88,0.00012465,2]
[352544525,1739159460533,-679.89,0.00012465,2]
[352544526,1739159460542,-500.0,0.00012465,2]
[352544527,1739159460551,-500.0,0.00012465,2]
[352544528,1739159460561,-6790.26,0.00012465,2]
[352544529,1739159460571,-1017.48,0.00012465,2]
[352544530,1739159460581,-500.0,0.00012465,2]
[352544531,1739159460591,-706.11,0.00012465,2]
[352544532,1739159460604,-3458.8,0.00012465,2]
[352544533,1739159460615,-500.0,0.00012465,2]
[352544534,1739159460626,-10188.75,0.00012465,2]
[352544535,1739159460638,-500.0,0.00012602,2]
[352544536,1739159460647,-719.3,0.00012602,2]
[352544537,1739159460657,-1019.54,0.00012602,2]
[352544538,1739159460667,-732.17,0.00012602,2]
[352544539,1739159460676,-500.0,0.00012602,2]
[352544540,1739159460685,-500.0,0.00012602,2]
[352544541,1739159460695,-500.0,0.00012602,2]
[352544542,1739159460705,-733.41,0.00012602,2]
[352544543,1739159460715,-742.49,0.00012602,2]
[352544544,1739159460725,-500.0,0.00012602,2]
[352544545,1739159460734,-500.0,0.00012602,2]
[352544546,1739159460743,-500.0,0.00012602,2]
[352544547,1739159460753,-1187.85,0.00012602,2]
[352544548,1739159460762,-500.0,0.00012602,2]
[352544549,1739159460771,-500.0,0.00012602,2]
[352544550,1739159460780,-500.0,0.00012602,2]
[352544551,1739159460789,-694.28,0.00012602,2]
[352544552,1739159460799,-500.0,0.00012602,2]
[352544553,1739159460808,-500.0,0.00012602,2]
[352544554,1739159460817,-500.0,0.00012602,2]
[352544555,1739159460826,-705.99,0.00012602,2]
[352544556,1739159460835,-580.12,0.00012602,2]
[352544557,1739159460845,-500.0,0.00012602,2]
[352544558,1739159460856,-1920.71,0.00012602,2]
[352544559,1739159460865,-500.0,0.00012602,2]
[352544560,1739159460874,-500.0,0.00012602,2]
[352544561,1739159460884,-154.03452,0.00012602,2]
[352544562,1739159460893,-610.0,0.00012602,2]
[352544563,1739159460902,-158.18092571,0.00012602,2]
[352544564,1739159460912,-1079.91,0.00012602,2]
[352544565,1739159460921,-500.0,0.00012602,2]
[352544566,1739159460931,-653.91,0.00012602,2]
[352544567,1739159460940,-501.46,0.00012602,2]
[352544568,1739159460952,-500.0,0.00012602,2]
[352544569,1739159460963,-151.0,0.00012602,2]
[352544570,1739159460972,-3903.0,0.00012602,2]
[352544571,1739159460982,-151.0,0.00012602,2]
[352544572,1739159460993,-3709.32,0.00012602,2]
[352544573,1739159461002,-151.0,0.00012602,2]
[352544574,1739159461012,-151.0,0.00012602,2]
[352544575,1739159461022,-212.874582,0.00012602,2]
[352544576,1739159461031,-3719.6,0.00012602,2]
[352544577,1739159461041,-871.83,0.00012602,2]
[352544578,1739159461051,-2055.74,0.00012602,2]
[352544579,1739159461060,-509.34851063,0.00012602,2]
[352544580,1739159461069,-1325.55,0.00012602,2]
[352544581,1739159461079,-760.18,0.00012602,2]
[352544582,1739159461088,-650.97,0.00012602,2]
[352544583,1739159461099,-14163.79,0.00012602,2]
[352544584,1739159461112,-518.98,0.00012602,2]
[352544585,1739159461123,-26907.86,0.00012602,2]
[352544586,1739159461133,-1618.92,0.00012602,2]
[352544587,1739159461144,-2005.94,0.00012602,2]
[352544588,1739159461155,-704.77,0.00012602,2]
[352544589,1739159461164,-1456.37,0.00012602,2]
[352544590,1739159461173,-779.8,0.00012602,2]
[352544591,1739159461183,-500.0,0.00012602,2]
[352544592,1739159461193,-1919.7,0.00012602,2]
[352544593,1739159461203,-824.44,0.00012602,2]
[352544594,1739159461212,-1614.34,0.00012602,2]
[352544595,1739159461223,-500.0,0.00012602,2]
[352544596,1739159461232,-500.0,0.00012602,2]
[352544597,1739159461241,-500.0,0.00012602,2]
[352544598,1739159461253,-217.0201522,0.00012602,2]
[352544599,1739159461263,-589.21,0.00012602,2]
[352544600,1739159461273,-1026.49,0.00012602,2]
[352544601,1739159461283,-500.0,0.00012602,2]
[352544602,1739159461293,-746.76,0.00012602,2]
[352544603,1739159461303,-655.27,0.00012602,2]
[352544604,1739159461314,-2053.08,0.00012602,2]
[352544605,1739159461325,-2692.2,0.00012602,2]
[352544606,1739159461334,-1287.78,0.00012602,2]
[352544607,1739159461343,-1187.79,0.00012602,2]
[352544608,1739159461356,-732.99,0.00012602,2]
[352544609,1739159461365,-1242.99,0.00012602,2]
[352544610,1739159461375,-1000.7,0.00012602,2]
[352544611,1739159461385,-500.0,0.00012602,2]
[352544612,1739159461395,-500.0,0.00012602,2]
[352544613,1739159461405,-500.0,0.00012602,2]
[352544614,1739159461414,-521.05,0.00012602,2]
[352544615,1739159461423,-500.0,0.00012602,2]
[352544616,1739159461433,-790.31,0.00012602,2]
[352544617,1739159461443,-151.0,0.00012602,2]
[352544618,1739159461453,-510.08,0.00012602,2]
[352544619,1739159461462,-1045.63,0.00012602,2]
[352544620,1739159461471,-937.96,0.00012602,2]
[352544621,1739159461481,-3052.88,0.00012602,2]
[352544622,1739159461491,-679.89,0.00012602,2]
[352544623,1739159461503,-500.0,0.00012602,2]
[352544624,1739159461514,-152.88966977,0.00012602,2]
[352544625,1739159461524,-6790.26,0.00012602,2]
[352544626,1739159461534,-1017.48,0.00012602,2]
[352544627,1739159461544,-500.0,0.00012602,2]
[352544628,1739159461555,-706.11,0.00012602,2]
[352544629,1739159461564,-3458.8,0.00012602,2]
[352544630,1739159461573,-500.0,0.00012602,2]
[352544631,1739159461582,-1000.0,0.0001262,2]
[352544632,1739159461591,-500.0,0.00012739,2]
[352544633,1739159461601,-719.3,0.00012739,2]
[352544634,1739159461611,-1019.54,0.00012739,2]
[352544635,1739159461621,-732.17,0.00012739,2]
[352544636,1739159461631,-500.0,0.00012739,2]
[352544637,1739159461641,-500.0,0.00012739,2]
[352544638,1739159461651,-500.0,0.00012739,2]
[352544639,1739159461661,-733.41,0.00012739,2]
[352544640,1739159461672,-742.49,0.00012739,2]
[352544641,1739159461681,-500.0,0.00012739,2]
[352544642,1739159461691,-500.0,0.00012739,2]
[352544643,1739159461700,-500.0,0.00012739,2]
[352544644,1739159461710,-1187.85,0.00012739,2]
[352544645,1739159461720,-205.37117131,0.00012739,2]
[352544646,1739159461795,-500.0,0.00012739,2]
[352544647,1739159461805,-500.0,0.00012739,2]
[352544648,1739159461814,-694.28,0.00012739,2]
[352544649,1739159461823,-500.0,0.00012739,2]
[352544650,1739159461833,-500.0,0.00012739,2]
[352544651,1739159461843,-173.56016844,0.00012739,2]
[352544652,1739159461855,-705.99,0.00012739,2]
[352544653,1739159461864,-580.12,0.00012739,2]
[352544654,1739159461873,-500.0,0.00012739,2]
[352544655,1739159461883,-1920.71,0.00012739,2]
[352544656,1739159461892,-500.0,0.00012739,2]
[352544657,1739159461902,-500.0,0.00012739,2]
[352544658,1739159461911,-610.0,0.00012739,2]
[352544659,1739159461921,-1079.91,0.00012739,2]
[352544660,1739159461931,-500.0,0.00012739,2]
[352544661,1739159461941,-653.91,0.00012739,2]
[352544662,1739159461950,-501.46,0.00012739,2]
[352544663,1739159461960,-500.0,0.00012739,2]
[352544664,1739159461969,-3903.0,0.00012739,2]
[352544665,1739159461979,-3709.32,0.00012739,2]
[352544666,1739159461991,-3719.6,0.00012739,2]
[352544667,1739159462001,-871.83,0.00012739,2]
[352544668,1739159462011,-2055.74,0.00012739,2]
[352544669,1739159462020,-1325.55,0.00012739,2]
[352544670,1739159462029,-760.18,0.00012739,2]
[352544671,1739159462038,-650.97,0.00012739,2]
[352544672,1739159462049,-14163.79,0.00012739,2]
[352544673,1739159462058,-518.98,0.00012739,2]
[352544674,1739159462068,-26907.86,0.00012739,2]
[352544675,1739159462077,-1618.92,0.00012739,2]
[352544676,1739159462087,-2005.94,0.00012739,2]
[352544677,1739159462097,-704.77,0.00012739,2]
[352544678,1739159462107,-1456.37,0.00012739,2]
[352544679,1739159462116,-779.8,0.00012739,2]
[352544680,1739159462127,-500.0,0.00012739,2]
[352544681,1739159462137,-1919.7,0.00012739,2]
[352544682,1739159462146,-824.44,0.00012739,2]
[352544683,1739159462157,-1614.34,0.00012739,2]
[352544684,1739159462166,-500.0,0.00012739,2]
[352544685,1739159462176,-500.0,0.00012739,2]
[352544686,1739159462186,-500.0,0.00012739,2]
[352544687,1739159462196,-589.21,0.00012739,2]
[352544688,1739159462206,-1026.49,0.00012739,2]
[352544689,1739159462217,-500.0,0.00012739,2]
[352544690,1739159462228,-746.76,0.00012739,2]
[352544691,1739159462238,-655.27,0.00012739,2]
[352544692,1739159462248,-2053.08,0.00012739,2]
[352544693,1739159462258,-2692.2,0.00012739,2]
[352544694,1739159462268,-151.0,0.00012739,2]
[352544695,1739159462279,-1287.78,0.00012739,2]
[352544696,1739159462288,-1187.79,0.00012739,2]
[352544697,1739159462298,-732.99,0.00012739,2]
[352544698,1739159462310,-1242.99,0.00012739,2]
[352544699,1739159462319,-1000.7,0.00012739,2]
[352544700,1739159462329,-500.0,0.00012739,2]
[352544701,1739159462338,-500.0,0.00012739,2]
[352544702,1739159462349,-500.0,0.00012739,2]
[352544703,1739159462359,-521.05,0.00012739,2]
[352544704,1739159462370,-500.0,0.00012739,2]
[352544705,1739159462380,-790.31,0.00012739,2]
[352544706,1739159462390,-510.08,0.00012739,2]
[352544707,1739159462399,-1045.63,0.00012739,2]
[352544708,1739159462410,-937.96,0.00012739,2]
[352544709,1739159462420,-3052.88,0.00012739,2]
[352544710,1739159462429,-679.89,0.00012739,2]
[352544711,1739159462439,-152.518823,0.00012739,2]
[352544712,1739159462449,-500.0,0.00012739,2]
[352544713,1739159462459,-6790.26,0.00012739,2]
[352544714,1739159462468,-1017.48,0.00012739,2]
[352544715,1739159462478,-177.66114352,0.00012739,2]
[352544716,1739159462488,-706.11,0.00012739,2]
[352544717,1739159462500,-3458.8,0.00012739,2]
[352544718,1739159462510,-500.0,0.00012739,2]
[352544719,1739159462519,-1000.0,0.00012763,2]
[352544720,1739159462530,-1000.0,0.00012763,2]
[352544721,1739159462540,-1000.0,0.00012763,2]
[352544722,1739159462550,-500.59239481,0.00012794,2]
[352544723,1739159462559,-502.27251224,0.00012794,2]